bitfinex/quotes_BTCUSD_20250423
["timestamp","ask_amount","ask_price","bid_price","bid_amount"]
[1745367644440,0.00131883,93627.0,93602.0,0.10683509]
[1745367644441,0.00131883,93627.0,93610.0,0.27046504]
[1745367644668,0.00131883,93627.0,93617.0,0.27046504]
[1745367644961,0.00131883,93627.0,93610.0,0.28114765]
[1745367645194,0.00131883,93627.0,93617.0,0.27046504]
[1745367645861,0.00131883,93627.0,93623.0,0.08544908]
[1745367646093,0.001,93629.0,93625.0,0.01454085]
[1745367646304,0.001,93629.0,93625.0,0.1335248]
[1745367646735,0.001,93629.0,93627.0,0.08544543]
[1745367646968,0.001,93649.0,93641.0,0.01067908]
[1745367647183,0.00099149,93645.0,93644.0,0.08542992]
[1745367647388,0.00014029,93645.0,93644.0,0.08542992]
[1745367647586,0.00014029,93645.0,93644.0,0.55462192]
[1745367647790,0.00014029,93645.0,93644.0,0.48242623]
[1745367648045,0.00014029,93645.0,93644.0,0.389192]
[1745367648267,0.00014029,93645.0,93643.0,0.01454085]
[1745367648457,0.00014029,93645.0,93643.0,0.1228439]
[1745367649106,0.00014029,93645.0,93643.0,0.13101079]
[1745367650188,0.00014029,93645.0,93644.0,0.00742108]
[1745367651581,0.00014029,93645.0,93644.0,0.35564608]
[1745367651736,0.001,93649.0,93644.0,0.35564608]
[1745367651737,0.001,93649.0,93646.0,0.01067851]
[1745367652154,0.001,93649.0,93644.0,0.00742108]
[1745367652353,0.001,93649.0,93645.0,0.00742108]
[1745367652653,0.001,93649.0,93646.0,0.01067851]
[1745367653002,0.000851,93665.0,93657.0,0.08541806]
[1745367653204,0.000851,93665.0,93656.0,0.01067737]
[1745367653406,0.000851,93665.0,93657.0,0.08541806]
[1745367653603,0.000851,93665.0,93658.0,0.00742108]
[1745367654625,0.000851,93665.0,93663.0,0.08541173]
[1745367654988,0.000851,93665.0,93664.0,0.02196193]
[1745367655189,0.000851,93665.0,93664.0,0.04438352]
[1745367655522,0.000851,93665.0,93664.0,0.00742108]
[1745367656445,0.000851,93665.0,93664.0,0.09283276]
[1745367656649,0.000851,93665.0,93664.0,0.00742108]
[1745367656844,0.001,93669.0,93664.0,0.00742108]
[1745367657077,0.001,93669.0,93664.0,0.0448225]
[1745367657280,0.001,93669.0,93665.0,0.00742108]
[1745367658094,0.001,93669.0,93666.0,0.00742108]
[1745367659022,0.001,93669.0,93664.0,0.03740142]
[1745367659351,0.0493,93666.0,93650.0,0.27046504]
[1745367659554,0.00266927,93665.0,93650.0,0.27046504]
[1745367659971,0.01067703,93659.0,93650.0,0.03776117]
[1745367660176,0.00266947,93658.0,93650.0,0.03776117]
[1745367660305,0.11097252,93658.0,93640.0,0.27046504]
[1745367660536,0.01067965,93636.0,93620.0,0.48670245]
[1745367660736,0.01067953,93637.0,93631.0,0.00014029]
[1745367660935,0.00266998,93636.0,93631.0,0.00014029]
[1745367661164,0.00266998,93642.0,93631.0,0.00014029]
[1745367661321,0.0985,93643.0,93631.0,0.00014029]
[1745367661523,0.11097284,93642.0,93631.0,0.00014029]
[1745367661732,0.0985,93643.0,93632.0,0.00743136]
[1745367661935,0.20680305,93643.0,93632.0,0.00743136]
[1745367662616,0.0985,93643.0,93633.0,0.00743136]
[1745367662770,0.1032,93650.0,93633.0,0.00743136]
[1745367663048,0.1032,93650.0,93640.0,0.27046504]
[1745367663372,0.01067828,93648.0,93641.0,0.00743136]
[1745367663578,0.00266971,93647.0,93641.0,0.00743136]
[1745367664403,0.00266971,93647.0,93645.0,0.06]
[1745367664601,0.01334788,93649.0,93645.0,0.06]
[1745367664815,0.01334788,93649.0,93646.0,0.00743136]
[1745367665346,0.00266971,93649.0,93646.0,0.00743136]
[1745367666386,0.01334788,93649.0,93646.0,0.00743136]
[1745367667481,0.00266971,93649.0,93646.0,0.00743136]
[1745367667681,0.1032,93650.0,93646.0,0.00743136]
[1745367668636,0.0492,93657.0,93646.0,0.00743136]
[1745367668637,0.0106744,93682.0,93647.0,0.32454046]
[1745367668751,0.01334347,93681.0,93659.0,0.27046504]
[1745367668952,0.01334347,93681.0,93660.0,0.00743136]
[1745367668953,0.00266895,93681.0,93660.0,0.00743136]
[1745367669374,0.0008508,93683.0,93660.0,0.00743136]
[1745367669580,0.0008508,93683.0,93666.0,0.09608549]
[1745367669763,0.0008508,93683.0,93667.0,0.431548]
[1745367669962,0.0008508,93683.0,93667.0,0.08540894]
[1745367670712,0.0008508,93683.0,93668.0,0.00743136]
[1745367671659,0.0008508,93683.0,93668.0,0.40427236]
[1745367671862,0.0008508,93683.0,93668.0,0.00743136]
[1745367676986,0.0008508,93683.0,93668.0,0.40444026]
[1745367677897,0.0008508,93683.0,93668.0,0.28159636]
[1745367678129,0.0008508,93683.0,93668.0,0.00743136]
[1745367678409,0.00351959,93683.0,93668.0,0.00743136]
[1745367678902,0.0008508,93683.0,93668.0,0.290528]
[1745367679127,0.0008508,93683.0,93664.0,0.01067646]
[1745367679359,0.0008508,93683.0,93666.0,0.01067623]
[1745367679629,0.0008508,93683.0,93667.0,0.8332803]
[1745367679850,0.0008508,93683.0,93668.0,0.476638]
[1745367680076,0.0008508,93683.0,93667.0,0.00743136]
[1745367680289,0.0008508,93683.0,93668.0,0.1044]
[1745367680513,0.0008508,93683.0,93667.0,0.00743136]
[1745367680734,0.0008508,93683.0,93668.0,0.00743136]
[1745367681468,0.0008508,93683.0,93665.0,0.0181077]
[1745367681680,0.01067452,93681.0,93665.0,0.00743136]
[1745367681898,0.00266872,93680.0,93665.0,0.00743136]
[1745367682116,0.01334335,93680.0,93666.0,0.00743225]
[1745367682393,0.00266872,93680.0,93666.0,0.00743225]
[1745367682625,0.0008508,93683.0,93666.0,0.00743225]
[1745367682833,0.0008508,93683.0,93667.0,0.00743225]
[1745367683460,0.0008508,93683.0,93668.0,0.00743225]
[1745367685759,0.0008508,93683.0,93668.0,0.58868734]
[1745367686028,0.0008508,93683.0,93668.0,0.52660834]
[1745367686472,0.0008508,93683.0,93668.0,0.54114919]
[1745367689425,0.0008508,93683.0,93668.0,0.48241819]
[1745367689828,0.0008508,93683.0,93668.0,0.38250919]
[1745367690324,0.0008508,93683.0,93668.0,0.5987466]
[1745367690533,0.0008508,93683.0,93668.0,0.33215366]
[1745367690751,0.0008508,93683.0,93668.0,0.22366966]
[1745367691209,0.0008508,93683.0,93668.0,0.49686166]
[1745367691430,0.0008508,93683.0,93668.0,1.09302956]
[1745367691649,0.0008508,93683.0,93668.0,1.08271356]
[1745367692348,0.0008508,93683.0,93682.0,0.10674409]
[1745367692557,0.0008508,93683.0,93682.0,0.21504714]
[1745367692787,0.00099107,93683.0,93682.0,0.22247939]
[1745367693598,0.00099107,93683.0,93682.0,0.2661604]
[1745367694191,0.00099107,93683.0,93682.0,0.15941631]
[1745367694388,0.00099107,93683.0,93682.0,0.2661604]
[1745367694717,0.00099107,93683.0,93682.0,0.15941631]
[1745367694935,0.00099107,93683.0,93682.0,0.05111326]
[1745367697493,0.00099107,93683.0,93682.0,0.15785735]
[1745367697717,0.00099107,93683.0,93682.0,0.2661604]
[1745367699476,0.00099107,93683.0,93682.0,0.15941631]
[1745367699910,0.37258002,93683.0,93682.0,0.05111326]
[1745367700110,0.42248002,93683.0,93682.0,0.00743225]
[1745367700852,0.21349046,93681.0,93680.0,0.04336697]
[1745367701135,0.01067543,93673.0,93660.0,0.27046504]
[1745367701330,0.01334448,93672.0,93660.0,0.27046504]
[1745367701497,0.01334448,93672.0,93660.0,0.31422165]
[1745367701822,0.01334448,93672.0,93661.0,0.00746369]
[1745367702226,0.01067611,93667.0,93661.0,0.00746369]
[1745367702444,0.22419206,93670.0,93660.0,0.31422165]
[1745367702445,0.010676,93668.0,93662.0,0.00746369]
[1745367703136,0.010676,93668.0,93663.0,0.00746369]
[1745367704060,0.010676,93668.0,93664.0,0.00746369]
[1745367704061,0.22419655,93668.0,93664.0,0.00746369]
[1745367704260,0.21352465,93666.0,93664.0,0.00746369]
[1745367704461,0.04836915,93665.0,93664.0,0.00746369]
[1745367705328,0.01067657,93663.0,93660.0,0.04375661]
[1745367705525,0.01067668,93662.0,93650.0,0.27046504]
[1745367705726,0.01067668,93662.0,93661.0,0.00745788]
[1745367705890,0.01067646,93664.0,93661.0,0.00745788]
[1745367706346,0.04836916,93665.0,93662.0,0.00745788]
[1745367706691,0.04836916,93665.0,93661.0,0.00745788]
[1745367706944,0.04836916,93665.0,93662.0,0.00745788]
[1745367707331,0.0590455,93665.0,93661.0,0.00745788]
[1745367707872,0.21353377,93662.0,93661.0,0.00745788]
[1745367708078,0.0457,93665.0,93661.0,0.00745788]
[1745367708286,0.01067646,93664.0,93661.0,0.00745788]
[1745367708504,0.04836916,93665.0,93661.0,0.00745788]
[1745367708640,0.0457,93665.0,93661.0,0.00745788]
[1745367709976,0.0457,93676.0,93662.0,0.17196]
[1745367710192,0.0457,93676.0,93666.0,0.27046504]
[1745367710611,0.0457,93676.0,93667.0,0.00745788]
[1745367710823,0.00266881,93675.0,93667.0,0.00745788]
[1745367711473,0.00266881,93675.0,93668.0,0.00745788]
[1745367712117,0.00266881,93675.0,93669.0,0.00745788]
[1745367712631,0.00266881,93675.0,93670.0,0.00745788]
[1745367712844,0.00266881,93675.0,93660.0,0.19262476]
[1745367713286,0.00266881,93675.0,93660.0,0.29939387]
[1745367713700,0.0457,93676.0,93664.0,0.1067646]
[1745367713955,0.0457,93676.0,93666.0,0.27046504]
[1745367714413,0.00099107,93683.0,93676.0,0.01067509]
[1745367714623,0.0004252,93687.0,93681.0,0.01067452]
[1745367714832,0.0004252,93687.0,93682.0,0.11741849]
[1745367715072,0.0004252,93687.0,93682.0,0.10674409]
[1745367715293,0.0004252,93687.0,93672.0,0.27046504]
[1745367715508,0.0004252,93687.0,93672.0,0.00014027]
[1745367717259,0.01067395,93686.0,93672.0,0.00014027]
[1745367717467,0.12164552,93686.0,93672.0,0.00014027]
[1745367717888,0.01067406,93685.0,93672.0,0.00014027]
[1745367718072,0.00266876,93684.0,93672.0,0.00014027]
[1745367719211,0.22416399,93682.0,93672.0,0.00014027]
[1745367719390,0.01067475,93679.0,93672.0,0.00014027]
[1745367719632,0.00266894,93678.0,93672.0,0.00014027]
[1745367719847,0.0133438,93678.0,93672.0,0.00014027]
[1745367720045,0.00266894,93678.0,93672.0,0.00014027]
[1745367720268,0.01067509,93676.0,93672.0,0.00014027]
[1745367720490,0.0133438,93678.0,93672.0,0.00014027]
[1745367720491,0.00266894,93675.0,93672.0,0.00014027]
[1745367720698,0.26300641,93674.0,93672.0,0.00014027]
[1745367720871,0.04836916,93673.0,93672.0,0.00014027]
[1745367721110,0.15400305,93673.0,93672.0,0.00014027]
[1745367721286,0.15667221,93673.0,93672.0,0.00014027]
[1745367726542,0.0505,93674.0,93672.0,0.00014027]
[1745367726543,0.001,93674.0,93672.0,0.00014027]
[1745367727327,0.001,93674.0,93673.0,0.00744998]
[1745367728824,0.32547838,93674.0,93673.0,0.00744998]
[1745367729031,0.37230946,93674.0,93673.0,0.00744998]
[1745367729235,0.41800946,93674.0,93672.0,0.00014027]
[1745367729431,0.11097248,93673.0,93672.0,0.00014027]
[1745367730014,0.10830305,93673.0,93672.0,0.00014027]
[1745367730483,0.11097248,93673.0,93672.0,0.00014027]
[1745367731082,0.11097248,93673.0,93672.0,1e-08]
[1745367731083,0.67605157,93673.0,93672.0,1e-08]
[1745367731288,0.01067931,93639.0,93630.0,0.0008502]
[1745367731521,0.21360268,93632.0,93630.0,0.00099049]
[1745367731735,0.11097343,93631.0,93630.0,0.00099049]
[1745367731933,0.32457789,93631.0,93630.0,0.00099049]
[1745367732245,0.32190751,93631.0,93630.0,0.00099049]
[1745367733015,0.37180751,93631.0,93630.0,0.00099049]
[1745367733148,0.37180751,93631.0,93572.0,0.18946022]
[1745367733149,0.01068182,93617.0,93572.0,0.18946022]
[1745367733351,0.26354782,93612.0,93611.0,0.00231803]
[1745367733557,0.41815087,93612.0,93611.0,0.00231803]
[1745367734857,0.15460305,93612.0,93611.0,0.00231803]
[1745367735244,0.15727397,93612.0,93611.0,0.00231803]
[1745367737092,0.11097397,93612.0,93611.0,0.00231803]
[1745367737348,0.103,93613.0,93611.0,0.00231803]
[1745367737570,0.00267087,93612.0,93611.0,0.00231803]
[1745367737791,0.11097392,93612.0,93611.0,0.00231803]
[1745367738670,0.16087392,93612.0,93611.0,0.00231803]
[1745367739557,0.15820305,93612.0,93611.0,0.00231803]
[1745367739791,0.37452215,93612.0,93611.0,0.00231803]
[1745367739996,0.47489087,93612.0,93611.0,0.00231803]
[1745367740833,0.93098964,93612.0,93611.0,0.00231803]
[1745367741041,0.97728964,93612.0,93611.0,0.00231803]
[1745367741247,0.93319087,93612.0,93611.0,0.00231803]
[1745367742155,0.94773172,93612.0,93611.0,0.00231803]
[1745367742378,0.27720008,93607.0,93578.0,0.0008502]
[1745367742621,0.43490313,93607.0,93578.0,0.0008502]
[1745367742884,0.26269347,93592.0,93578.0,0.0008502]
[1745367743107,0.78299652,93592.0,93591.0,0.00114038]
[1745367745301,0.56930305,93592.0,93591.0,0.00114038]
[1745367745531,0.52030305,93592.0,93591.0,0.00114038]
[1745367745732,0.412,93592.0,93591.0,0.00114038]
[1745367746160,0.01068353,93602.0,93591.0,0.00114038]
[1745367746363,0.11097426,93601.0,93591.0,0.00114038]
[1745367747042,0.01068444,93594.0,93591.0,0.00114038]
[1745367747305,0.32466568,93593.0,93591.0,0.00114038]
[1745367747535,0.10830305,93593.0,93591.0,0.00114038]
[1745367747752,0.11097449,93593.0,93591.0,0.00114038]
[1745367748394,0.26269347,93592.0,93591.0,0.00114038]
[1745367748610,0.37099652,93592.0,93591.0,0.00114038]
[1745367749429,0.46434259,93592.0,93591.0,0.00114038]
[1745367749687,0.37099652,93592.0,93591.0,0.00114038]
[1745367751038,0.10830305,93592.0,93591.0,0.00114038]
[1745367751304,0.11097456,93592.0,93591.0,0.00114038]
[1745367751521,0.10830305,93592.0,93591.0,0.00114038]
[1745367752181,0.05628376,93600.0,93591.0,0.00114038]
[1745367752182,0.10308,93605.0,93591.0,0.00114038]
[1745367752401,0.01068398,93598.0,93591.0,0.00114038]
[1745367752588,0.00267121,93597.0,93591.0,0.00114038]
[1745367753487,0.01068444,93594.0,93591.0,0.00114038]
[1745367753710,0.21369347,93592.0,93591.0,0.00114038]
[1745367753914,0.32199652,93592.0,93591.0,0.00114038]
[1745367757983,0.73399652,93592.0,93591.0,0.00114038]
[1745367758403,0.78219652,93592.0,93591.0,0.00114038]
[1745367758617,0.25932316,93579.0,93578.0,0.0008502]
[1745367758822,0.47062621,93579.0,93578.0,0.0008502]
[1745367759237,0.51782621,93579.0,93578.0,0.0008502]
[1745367760510,0.51786621,93579.0,93578.0,0.0008502]
[1745367760920,0.54555255,93579.0,93578.0,0.0008502]
[1745367761129,0.51786621,93579.0,93578.0,0.0008502]
[1745367761552,0.42506621,93579.0,93578.0,0.0008502]
[1745367762276,0.32202621,93579.0,93578.0,0.0008502]
[1745367762690,0.01068752,93567.0,93550.0,0.4062123]
[1745367762898,0.01068741,93568.0,93550.0,0.40635213]
[1745367762899,0.11097521,93566.0,93550.0,0.40635213]
[1745367763724,0.12166285,93566.0,93550.0,0.04289507]
[1745367763867,0.12166285,93566.0,93550.0,0.44910737]
[1745367765242,0.01068821,93561.0,93550.0,0.04289507]
[1745367765448,0.11097521,93560.0,93550.0,0.04289507]
[1745367765670,0.10830305,93560.0,93550.0,0.44910737]
[1745367765883,0.00267234,93559.0,93550.0,0.44910737]
[1745367766301,0.00267234,93559.0,93550.0,0.04274607]
[1745367766711,0.00267234,93559.0,93541.0,0.01454085]
[1745367766917,0.00281236,93559.0,93550.0,0.0442596]
[1745367767142,0.00281236,93559.0,93541.0,0.01454085]
[1745367767330,0.00281236,93559.0,93542.0,0.171265]
[1745367767761,0.01068855,93558.0,93541.0,0.01454085]
[1745367767974,0.01068889,93555.0,93542.0,0.04268587]
[1745367768195,0.00267235,93554.0,93535.0,0.01454085]
[1745367768428,0.01068935,93551.0,93535.0,0.01454085]
[1745367768639,0.0026725,93550.0,93536.0,0.04451996]
[1745367768848,0.0026725,93550.0,93536.0,0.0004251]
[1745367769291,0.0026725,93553.0,93536.0,0.0004251]
[1745367769959,0.0026725,93553.0,93537.0,0.441351]
[1745367770195,0.0026725,93553.0,93536.0,0.0004251]
[1745367770411,0.0026725,93552.0,93537.0,0.147173]
[1745367770674,0.0026725,93554.0,93537.0,0.147173]
[1745367770846,0.0026725,93554.0,93537.0,0.15786395]
[1745367771058,0.0026725,93554.0,93540.0,0.4062123]
[1745367773330,0.10830305,93553.0,93536.0,0.04481947]
[1745367773543,0.0497,93551.0,93536.0,0.04481947]
[1745367773884,0.00267261,93551.0,93537.0,0.01454085]
[1745367774089,0.01068855,93558.0,93539.0,0.01454085]
[1745367774325,0.11097555,93557.0,93537.0,0.01454085]
[1745367774510,0.11097555,93557.0,93540.0,0.4062123]
[1745367777410,0.0026725,93557.0,93547.0,0.27101389]
[1745367777635,0.00267235,93556.0,93547.0,0.27101389]
[1745367777844,0.00014002,93559.0,93547.0,0.27101389]
[1745367778002,0.00267235,93558.0,93547.0,0.27101389]
[1745367779765,0.00014002,93559.0,93547.0,0.27101389]
[1745367780194,0.00014002,93559.0,93553.0,0.01454085]
[1745367780407,0.00014002,93559.0,93552.0,0.01454085]
[1745367780632,0.00014002,93559.0,93557.0,0.01454085]
[1745367781107,0.00014002,93559.0,93556.0,0.01454085]
[1745367781322,0.00014002,93559.0,93558.0,0.01454085]
[1745367781534,0.00014002,93559.0,93557.0,0.116353]
[1745367781751,0.00014002,93559.0,93550.0,0.01068947]
[1745367781920,0.00014002,93559.0,93551.0,0.01454085]
[1745367782132,0.00014002,93559.0,93550.0,0.02523032]
[1745367782343,0.00014002,93559.0,93551.0,0.01068935]
[1745367782641,0.00014002,93559.0,93552.0,0.01454085]
[1745367782973,0.00014002,93559.0,93554.0,0.01454085]
[1745367783206,0.00014002,93559.0,93534.0,0.02738657]
[1745367783433,0.0451,93556.0,93541.0,0.01454085]
[1745367783672,0.00267235,93555.0,93541.0,0.01454085]
[1745367784575,0.00267235,93555.0,93541.0,0.02523134]
[1745367784789,0.00267235,93555.0,93541.0,0.01454085]
[1745367785214,0.1109754,93555.0,93541.0,0.01454085]
[1745367785424,0.12166429,93555.0,93541.0,0.01454085]
[1745367785638,0.22447452,93552.0,93537.0,0.01454085]
[1745367785863,0.11097559,93551.0,93540.0,0.27101389]
[1745367786498,0.32476312,93551.0,93540.0,0.27101389]
[1745367786805,0.32476312,93551.0,93536.0,0.04481947]
[1745367786806,0.01068992,93546.0,93536.0,0.04481947]
[1745367787036,0.11097587,93545.0,93536.0,0.04481947]
[1745367787224,0.00267282,93549.0,93536.0,0.04481947]
[1745367787467,0.00267254,93548.0,93540.0,0.01454085]
[1745367788075,0.00267254,93554.0,93540.0,0.01454085]
[1745367788239,0.10830305,93553.0,93540.0,0.01454085]
[1745367788744,0.00267254,93552.0,93540.0,0.01454085]
[1745367789162,0.0451,93556.0,93540.0,0.01454085]
[1745367789342,0.0451,93556.0,93546.0,0.27101389]
[1745367789540,0.00267243,93555.0,93546.0,0.27101389]
[1745367790197,0.00267243,93555.0,93541.0,0.01454085]
[1745367791225,0.00267243,93555.0,93543.0,0.01454085]
[1745367791435,0.00014002,93559.0,93547.0,0.01454085]
[1745367791636,0.01068889,93555.0,93540.0,0.27101389]
[1745367791840,0.00267243,93554.0,93541.0,0.01454085]
[1745367792183,0.01068947,93550.0,93537.0,0.01454085]
[1745367792376,0.00267253,93549.0,93541.0,0.01454085]
[1745367792497,0.00267254,93552.0,93541.0,0.01454085]
[1745367792865,0.10830305,93553.0,93541.0,0.01454085]
[1745367793254,0.00014002,93559.0,93541.0,0.01454085]
[1745367793452,0.10830305,93558.0,93549.0,0.27101389]
[1745367793663,0.11097546,93558.0,93549.0,0.27101389]
[1745367795105,0.01068912,93553.0,93541.0,0.01454085]
[1745367795418,0.00267247,93552.0,93541.0,0.01454085]
[1745367795611,0.00267247,93555.0,93541.0,0.01454085]
[1745367795816,0.01068901,93554.0,93541.0,0.01454085]
[1745367796029,0.0026725,93553.0,93540.0,0.27101389]
[1745367796240,0.10830305,93552.0,93540.0,0.27101389]
[1745367796446,0.00267262,93551.0,93540.0,0.27101389]
[1745367796662,0.10830305,93550.0,93540.0,0.27101389]
[1745367797149,0.00267262,93549.0,93540.0,0.27101389]
[1745367797370,0.01069049,93541.0,93534.0,0.01669528]
[1745367797593,0.00267282,93540.0,93534.0,0.01669528]
[1745367797790,0.00267281,93544.0,93534.0,0.01669528]
[1745367797955,0.10830305,93543.0,93540.0,0.001]
[1745367798188,0.00267281,93542.0,93540.0,0.001]
[1745367798818,0.00267281,93542.0,93536.0,0.04681947]
[1745367800219,0.00267281,93542.0,93536.0,0.04481947]
[1745367800423,0.00267281,93542.0,93537.0,0.01323423]
[1745367800630,0.00267281,93542.0,93536.0,0.04481947]
[1745367801265,0.00267281,93542.0,93530.0,0.12935109]
[1745367801866,0.00267281,93542.0,93530.0,0.17377654]
[1745367802491,0.0452,93541.0,93530.0,0.17377654]
[1745367802721,0.00267292,93540.0,93530.0,0.17377654]
[1745367802937,0.11097597,93540.0,93530.0,0.17377654]
[1745367803353,0.00267292,93540.0,93530.0,0.17377654]
[1745367803585,0.0452,93541.0,93530.0,0.17377654]
[1745367803784,0.04787282,93548.0,93530.0,0.17577654]
[1745367803898,0.10830305,93547.0,93538.0,0.27101389]
[1745367804121,0.00267276,93546.0,93538.0,0.27101389]
[1745367804335,0.10830305,93545.0,93538.0,0.27101389]
[1745367807188,0.00267276,93547.0,93538.0,0.27101389]
[1745367811720,0.00267276,93547.0,93539.0,0.01454085]
[1745367811936,0.00267259,93554.0,93538.0,0.02034983]
[1745367812152,0.11097564,93554.0,93538.0,0.02034983]
[1745367813683,0.11097564,93554.0,93538.0,0.02134983]
[1745367816479,0.0459,93555.0,93544.0,0.27101389]
[1745367816702,0.00014002,93559.0,93556.0,0.01068878]
[1745367816925,0.00014002,93559.0,93551.0,0.01068935]
[1745367817128,0.00014002,93559.0,93552.0,0.01068924]
[1745367817342,0.00014002,93559.0,93552.0,0.01883073]
[1745367817756,0.001,93555.0,93552.0,0.00814149]
[1745367817980,0.001,93555.0,93548.0,0.01454085]
[1745367818418,0.001,93555.0,93544.0,0.28170404]
[1745367818622,0.001,93555.0,93546.0,0.01068992]
[1745367818823,0.00014002,93559.0,93546.0,0.01068992]
[1745367819030,0.00014002,93559.0,93547.0,0.15695]
[1745367819260,0.00114002,93559.0,93550.0,0.01068947]
[1745367819466,0.00114002,93559.0,93552.0,0.01068924]
[1745367819857,0.00114002,93559.0,93553.0,0.00749164]
[1745367820054,0.00014002,93559.0,93553.0,0.00749164]
[1745367820470,0.00114002,93559.0,93553.0,0.00749164]
[1745367820677,0.00014002,93559.0,93553.0,0.00749164]
[1745367820893,0.00114002,93559.0,93554.0,0.00749164]
[1745367821559,0.00114002,93559.0,93555.0,0.00749164]
[1745367822704,0.00014002,93559.0,93556.0,0.00749164]
[1745367822935,0.00114002,93559.0,93556.0,0.00749164]
[1745367823557,0.00314002,93559.0,93557.0,0.00749164]
[1745367823789,0.00214002,93559.0,93557.0,0.00749164]
[1745367824176,0.00414002,93559.0,93558.0,0.00749164]
[1745367825228,0.00014002,93559.0,93558.0,0.02203249]
[1745367825451,0.0464,93577.0,93561.0,0.01068821]
[1745367825677,0.00267172,93576.0,93561.0,0.01454085]
[1745367825914,0.01068752,93567.0,93558.0,0.00749164]
[1745367826134,0.002,93559.0,93558.0,0.00749164]
[1745367826395,0.0464,93559.0,93558.0,0.00749164]
[1745367826605,0.04907224,93559.0,93558.0,0.00749164]
[1745367827025,0.0464,93559.0,93558.0,0.00749164]
[1745367827636,0.15470305,93559.0,93558.0,0.00749164]
[1745367827838,0.1573754,93559.0,93558.0,0.00749164]
[1745367828862,0.1593754,93559.0,93558.0,0.00749164]
[1745367829626,0.37314425,93559.0,93558.0,0.00749164]
[1745367829841,0.3704719,93559.0,93558.0,0.00749164]
[1745367830058,0.52777495,93559.0,93558.0,0.00749164]
[1745367830308,0.93977495,93559.0,93558.0,0.00749164]
[1745367830487,0.8314719,93559.0,93558.0,0.00749164]
[1745367830698,0.0464,93538.0,93530.0,0.04442545]
[1745367830974,0.0026729,93537.0,93530.0,0.00014002]
[1745367831131,0.01336385,93537.0,93530.0,0.00014002]
[1745367831552,0.21383056,93532.0,93530.0,0.04295188]
[1745367831760,0.15737641,93531.0,93530.0,0.04295188]
[1745367832284,0.15737641,93531.0,93530.0,0.04495188]
[1745367833012,0.16037641,93531.0,93530.0,0.04495188]
[1745367833202,0.16037641,93531.0,93530.0,0.04295188]
[1745367834828,0.16437641,93531.0,93530.0,0.04295188]
[1745367836202,0.16437627,93531.0,93530.0,0.04295188]
[1745367837066,0.37553589,93531.0,93530.0,0.04295188]
[1745367837521,0.41169613,93531.0,93530.0,0.04295188]
[1745367837966,0.37553589,93531.0,93530.0,0.04295188]
[1745367838646,0.36853589,93531.0,93530.0,0.04295188]
[1745367838853,0.37353589,93531.0,93530.0,0.04295188]
[1745367839878,0.78553589,93531.0,93530.0,0.00014002]
[1745367840101,0.89383894,93531.0,93530.0,0.00014002]
[1745367840527,0.78553589,93531.0,93530.0,0.00014002]
[1745367843465,0.57170305,93531.0,93530.0,0.00014002]
[1745367845818,0.52530305,93531.0,93530.0,0.00014002]
[1745367849426,0.57220305,93531.0,93530.0,0.00014002]
[1745367849651,0.62070305,93531.0,93530.0,1e-08]
[1745367849862,0.62070305,93531.0,93512.0,0.0004254]
[1745367849863,0.0469,93519.0,93512.0,0.0004254]
[1745367850072,0.78533953,93518.0,93512.0,0.0004254]
[1745367850283,0.82956562,93518.0,93512.0,0.0004254]
[1745367850839,0.82856562,93518.0,93512.0,0.0004254]
[1745367851618,0.83356562,93518.0,93517.0,0.0014251]
[1745367852067,0.83456562,93518.0,93517.0,0.0014251]
[1745367853390,0.82144705,93518.0,93517.0,0.0014251]
[1745367853828,0.52530305,93518.0,93517.0,0.0014251]
[1745367854081,0.417,93518.0,93517.0,0.0014251]
[1745367854287,0.005,93518.0,93517.0,0.0014251]
[1745367854497,0.005,93518.0,93517.0,0.01696595]
[1745367854712,0.005,93518.0,93517.0,0.067328]
[1745367854917,0.005,93518.0,93517.0,0.820039]
[1745367855123,0.005,93518.0,93517.0,0.773361]
[1745367855340,0.00014025,93531.0,93522.0,0.01454085]
[1745367855552,0.00014025,93531.0,93520.0,0.27101389]
[1745367856210,0.00014025,93531.0,93521.0,0.00746205]
[1745367856619,0.00014025,93531.0,93522.0,0.00746205]
[1745367857044,0.00014025,93531.0,93523.0,0.00746205]
[1745367857968,0.00014025,93531.0,93527.0,0.01069209]
[1745367858173,0.00114025,93531.0,93528.0,0.142688]
[1745367858394,0.00114025,93531.0,93525.0,0.184109]
[1745367858620,0.00114025,93531.0,93526.0,0.00746205]
[1745367859412,0.00114025,93531.0,93527.0,0.00746205]
[1745367859802,0.00114025,93531.0,93521.0,0.13651677]
[1745367859992,0.00014025,93531.0,93522.0,0.137767]
[1745367860226,0.00014025,93531.0,93528.0,0.001]
[1745367860435,0.00014025,93531.0,93521.0,0.13651677]
[1745367860693,0.00014025,93531.0,93522.0,0.15852267]
[1745367861027,0.00014025,93531.0,93527.0,0.002]
[1745367861250,0.00014025,93531.0,93523.0,0.01069255]
[1745367861463,0.00014025,93531.0,93528.0,0.001]
[1745367861866,0.00014025,93531.0,93523.0,0.01069255]
[1745367862067,0.00014025,93531.0,93524.0,0.764596]
[1745367862899,0.00014025,93531.0,93524.0,0.77528844]
[1745367863109,0.00014025,93531.0,93529.0,0.01454085]
[1745367864291,0.00114025,93531.0,93529.0,0.01454085]
[1745367864462,0.00114025,93531.0,93529.0,0.25127869]
[1745367864704,0.00114025,93531.0,93530.0,1.88829105]
[1745367864858,0.00114025,93531.0,93530.0,0.22067905]
[1745367866002,0.00014025,93531.0,93530.0,0.22067905]
[1745367866957,0.00014025,93531.0,93530.0,0.2352199]
[1745367867169,0.00014025,93531.0,93530.0,0.34352295]
[1745367869265,0.00014025,93531.0,93530.0,0.2352199]
[1745367869863,0.00114025,93531.0,93530.0,0.2382199]
[1745367870078,0.00114025,93531.0,93530.0,0.34652295]
[1745367870836,0.08568292,93553.0,93543.0,0.27101389]
[1745367871279,0.08568292,93553.0,93543.0,0.28170416]
[1745367871481,0.08568292,93553.0,93543.0,0.27101389]
[1745367871886,0.08568292,93553.0,93544.0,0.00746029]
[1745367872126,0.08568292,93563.0,93556.0,0.01068878]
[1745367872338,0.10288,93568.0,93565.0,0.01068775]
[1745367872564,0.00014041,93568.0,93566.0,0.52032964]
[1745367872787,0.08568292,93584.0,93578.0,0.01068627]
[1745367873000,0.08568292,93584.0,93574.0,0.27101389]
[1745367873419,0.08568292,93584.0,93575.0,0.00746029]
[1745367873854,0.08568292,93584.0,93575.0,0.0181469]
[1745367874072,0.08568292,93584.0,93575.0,0.00746029]
[1745367874287,0.08568292,93584.0,93576.0,0.00746029]
[1745367874503,0.0008514,93592.0,93578.0,0.01068627]
[1745367874712,0.0008514,93592.0,93576.0,0.00746029]
[1745367874937,0.00352269,93592.0,93576.0,0.00746029]
[1745367875146,0.0008514,93592.0,93579.0,0.01068615]
[1745367875417,0.0008514,93592.0,93580.0,0.380799]
[1745367875913,0.00352269,93592.0,93581.0,0.00746029]
[1745367876452,0.001,93584.0,93582.0,0.00746029]
[1745367877254,0.0008504,93585.0,93582.0,0.00746029]